fUST/lending_fUST_20250820
["ID","MTS","AMOUNT","RATE_DAILY","PERIOD"]
[380330164,1755688232534,-480.0,0.00020263,2]
[380330165,1755688232543,-748.16,0.00020263,2]
[380330166,1755688232552,-661.36,0.00020263,2]
[380330167,1755688232566,-480.0,0.00020263,2]
[380330168,1755688232575,-480.0,0.00020263,2]
[380330169,1755688232584,-529.78,0.00020263,2]
[380330170,1755688232593,-480.0,0.00020263,2]
[380330171,1755688232602,-480.0,0.00020263,2]
[380330172,1755688232612,-480.0,0.00020263,2]
[380330177,1755688232741,-480.0,0.00020263,2]
[380330178,1755688232750,-480.0,0.00020263,2]
[380330180,1755688232760,-480.0,0.00020263,2]
[380330182,1755688232770,-480.0,0.00020263,2]
[380330184,1755688232780,-480.0,0.00020263,2]
[380330186,1755688232790,-300.0,0.00020371,20]
[380330188,1755688232800,-300.0,0.00020371,20]
[380330190,1755688232810,-300.0,0.00020371,20]
[380330192,1755688232819,-300.0,0.00020371,20]
[380330194,1755688232830,-300.0,0.00020371,20]
[380330197,1755688232841,-300.0,0.00020371,20]
[380330199,1755688232850,-735.49,0.00020379,3]
[380330200,1755688232860,-300.0,0.00020389,20]
[380330202,1755688232869,-300.0,0.00020389,20]
[380330204,1755688232879,-300.0,0.00020389,20]
[380330206,1755688232888,-300.0,0.00020389,20]
[380330208,1755688232898,-300.0,0.00020389,20]
[380330210,1755688232908,-300.0,0.00020389,20]
[380330212,1755688232917,-300.0,0.00020389,20]
[380330214,1755688232926,-300.0,0.00020389,20]
[380330216,1755688232935,-300.0,0.00020389,20]
[380330218,1755688232945,-300.0,0.00020389,20]
[380330220,1755688232955,-300.0,0.00020389,20]
[380330222,1755688232964,-300.0,0.00020389,20]
[380330224,1755688232973,-300.0,0.00020389,20]
[380330226,1755688232983,-300.0,0.00020389,20]
[380330228,1755688232992,-300.0,0.00020389,20]
[380330230,1755688233001,-300.0,0.00020389,20]
[380330232,1755688233010,-300.0,0.00020389,20]
[380330235,1755688233021,-300.0,0.00020389,20]
[380330237,1755688233031,-300.0,0.00020389,20]
[380330238,1755688233041,-501.70312654,0.00020521,2]
[380330240,1755688233051,-351.47899447,0.00020521,2]
[380330242,1755688233062,-501.28444271,0.00020521,2]
[380330244,1755688233071,-500.0,0.00020521,2]
[380330246,1755688233081,-1000.0,0.00020521,2]
[380330248,1755688233091,-1000.0,0.00020521,2]
[380330250,1755688233103,-1000.0,0.00020521,2]
[380330252,1755688233113,-1001.66877216,0.00020521,2]
[380330254,1755688233122,-500.92164858,0.00020521,2]
[380330256,1755688233132,-500.0,0.00020521,2]
[380330258,1755688233143,-486.46,0.00020537,2]
[380330260,1755688233155,-480.0,0.00020537,2]
[380330262,1755688233166,-748.16,0.00020537,2]
[380330264,1755688233175,-661.36,0.00020537,2]
[380330266,1755688233185,-480.0,0.00020537,2]
[380330268,1755688233195,-576.92,0.00020537,2]
[380330270,1755688233205,-529.78,0.00020537,2]
[380330272,1755688233215,-480.0,0.00020537,2]
[380330274,1755688233225,-480.0,0.00020537,2]
[380330275,1755688233234,-480.0,0.00020537,2]
[380330276,1755688233244,-480.0,0.00020537,2]
[380330277,1755688233254,-480.0,0.00020537,2]
[380330278,1755688233264,-480.0,0.00020537,2]
[380330279,1755688233273,-480.0,0.00020537,2]
[380330280,1755688233283,-1282.31407324,0.00020791,2]
[380330281,1755688233292,-480.0,0.00020797,2]
[380330282,1755688233302,-480.0,0.00020797,2]
[380330283,1755688233311,-480.0,0.00020797,2]
[380330284,1755688233321,-480.0,0.00020797,2]
[380330285,1755688233331,-295.48,0.00020797,2]
[380330286,1755688233340,-187.42,0.00020797,2]
[380330287,1755688233351,-461.15880936,0.00020797,2]
[380330288,1755688233362,-480.0,0.00020797,2]
[380330289,1755688233371,-302.01150709,0.00020797,2]
[380330290,1755688233381,-240.03954782,0.00020797,2]
[380330291,1755688233391,-163.12371991,0.00020797,2]
[380330292,1755688233401,-480.0,0.00020797,2]
[380330293,1755688233410,-480.0,0.00020797,2]
[380330294,1755688233420,-480.0,0.00020797,2]
[380330295,1755688233429,-480.0,0.00020797,2]
[380330296,1755688233438,-480.66733232,0.00020797,2]
[380330297,1755688233448,-481.40635997,0.00020797,2]
[380330298,1755688233458,-362.3538731,0.00020797,2]
[380330299,1755688233468,-480.0,0.00020797,2]
[380330300,1755688233477,-480.0,0.00020797,2]
[380330301,1755688233487,-572.80341295,0.00020797,2]
[380330302,1755688233496,-480.0,0.00020797,2]
[380330303,1755688233505,-480.0,0.00020797,2]
[380330304,1755688233516,-396.95627069,0.00020797,2]
[380330305,1755688233527,-480.0,0.00020797,2]
[380330306,1755688233537,-480.0,0.00020797,2]
[380330307,1755688233547,-287.0,0.00020797,2]
[380330308,1755688233557,-480.0,0.00020797,2]
[380330309,1755688233574,-480.0,0.00020797,2]
[380330310,1755688233584,-482.98320907,0.00020797,2]
[380330311,1755688233595,-480.0,0.00020797,2]
[380330312,1755688233606,-480.0,0.00020797,2]
[380330313,1755688233616,-484.23924881,0.00020797,2]
[380330314,1755688233627,-481.29068542,0.00020797,2]
[380330315,1755688233643,-463.89658378,0.00020797,2]
[380330316,1755688233657,-488.03253123,0.00020797,2]
[380330317,1755688233668,-480.0,0.00020797,2]
[380330318,1755688233678,-480.0,0.00020797,2]
[380330319,1755688233687,-480.0,0.00020797,2]
[380330320,1755688233697,-480.0,0.00020797,2]
[380330321,1755688233707,-480.0,0.00020797,2]
[380330322,1755688233717,-480.0,0.00020797,2]
[380330323,1755688233727,-616.14675918,0.00020797,2]
[380330324,1755688233737,-480.0,0.00020797,2]
[380330325,1755688233747,-480.0,0.00020797,2]
[380330326,1755688233758,-480.0,0.00020797,2]
[380330327,1755688233768,-480.0,0.00020797,2]
[380330328,1755688233778,-480.0,0.00020797,2]
[380330329,1755688233789,-480.0,0.00020797,2]
[380330330,1755688233799,-480.0,0.00020797,2]
[380330331,1755688233808,-480.0,0.00020797,2]
[380330332,1755688233818,-480.0,0.00020797,2]
[380330333,1755688233828,-480.0,0.00020797,2]
[380330334,1755688233838,-480.0,0.00020797,2]
[380330335,1755688233848,-480.0,0.00020797,2]
[380330336,1755688233858,-480.0,0.00020797,2]
[380330337,1755688233868,-320.01086731,0.00020797,2]
[380330338,1755688233878,-480.0,0.00020797,2]
[380330339,1755688233888,-480.0,0.00020797,2]
[380330340,1755688233897,-480.0,0.00020797,2]
[380330341,1755688233907,-480.0,0.00020797,2]
[380330342,1755688233918,-480.0,0.00020797,2]
[380330343,1755688233927,-187.51082183,0.00020797,2]
[380330344,1755688234025,-272.48917817,0.00020797,2]
[380330345,1755688234035,-480.0,0.00020797,2]
[380330346,1755688234045,-326.81726267,0.00020797,2]
[380330347,1755688234056,-153.18273733,0.00020797,2]
[380330348,1755688234067,-500.0,0.00020797,2]
[380330349,1755688234083,-480.0,0.00020797,2]
[380330350,1755688234093,-480.0,0.00020797,2]
[380330351,1755688234102,-480.0,0.00020797,2]
[380330352,1755688234111,-480.0,0.00020797,2]
[380330353,1755688234121,-480.0,0.00020797,2]
[380330354,1755688234130,-480.0,0.00020797,2]
[380330355,1755688234139,-480.0,0.00020797,2]
[380330356,1755688234149,-480.0,0.00020797,2]
[380330357,1755688234158,-327.25856176,0.00020797,2]
[380330358,1755688234167,-465.81087191,0.00020797,2]
[380330359,1755688234177,-480.0,0.00020811,2]
[380330360,1755688234186,-748.16,0.00020811,2]
[380330361,1755688234196,-661.36,0.00020811,2]
[380330362,1755688234205,-480.0,0.00020811,2]
[380330363,1755688234215,-529.78,0.00020811,2]
[380330364,1755688234224,-480.0,0.00020811,2]
[380330365,1755688234233,-480.0,0.00020811,2]
[380330366,1755688234242,-480.0,0.00020811,2]
[380330367,1755688234251,-480.0,0.00020811,2]
[380330368,1755688234261,-480.0,0.00020811,2]
[380330369,1755688234269,-5438.7067046,0.00020835,2]
[380330386,1755688237732,-199.0,0.00019873,2]
[380330387,1755688237742,-480.0,0.00020797,2]
[380330388,1755688237752,-1650.2239398,0.00020835,2]
[380330389,1755688237762,-1744.81841461,0.00020851,2]
[380330390,1755688237771,-455.31106279,0.00020871,2]
[380330391,1755688237780,-480.0,0.00020871,2]
[380330392,1755688237790,-480.0,0.00020871,2]
[380330393,1755688237799,-500.89748603,0.00020873,2]
[380330394,1755688237808,-500.0,0.00020873,2]
[380330395,1755688237817,-500.0,0.00020873,2]
[380330396,1755688237826,-500.0,0.00020873,2]
[380330397,1755688237836,-500.0,0.00020873,2]
[380330398,1755688237845,-500.28931521,0.00020873,2]
[380330399,1755688237854,-500.0,0.00020873,2]
[380330400,1755688237863,-501.63063247,0.00020873,2]
[380330401,1755688237872,-500.0,0.00020873,2]
[380330402,1755688237881,-500.0,0.00020873,2]
[380330403,1755688237890,-500.0,0.00020873,2]
[380330404,1755688237899,-503.57746128,0.00020873,2]
[380330405,1755688237908,-168.9954254,0.00020873,2]
[380330406,1755688237919,-501.07898147,0.00020873,2]
[380330407,1755688237930,-571.69438913,0.00020873,2]
[380330408,1755688237939,-500.0,0.00020873,2]
[380330409,1755688237948,-501.74535346,0.00020873,2]
[380330410,1755688237957,-500.0,0.00020873,2]
[380330411,1755688237966,-4214.86705121,0.00020873,2]
[380330412,1755688237975,-735.49,0.00020887,3]
[380330413,1755688237984,-1000.0,0.00020897,2]
[380330414,1755688237993,-1000.0,0.00020897,2]
[380330415,1755688238002,-1000.0,0.00020897,2]
[380330416,1755688238011,-1000.0,0.00020897,2]
[380330417,1755688238021,-1000.0,0.00020897,2]
[380330418,1755688238030,-1000.0,0.00020897,2]
[380330419,1755688238040,-1000.0,0.00020897,2]
[380330420,1755688238049,-441.98,0.00020897,2]
[380330421,1755688238058,-151.633833,0.00020898,2]
[380330422,1755688238068,-151.0,0.00020898,2]
[380330423,1755688238077,-151.0,0.00020898,2]
[380330424,1755688238086,-151.0,0.00020898,2]
[380330425,1755688238095,-151.0,0.00020898,2]
[380330426,1755688238105,-151.0,0.00020898,2]
[380330427,1755688238115,-181.821142,0.00020898,2]
[380330428,1755688238124,-153.497539,0.00020898,2]
[380330429,1755688238133,-151.0,0.00020898,2]
[380330430,1755688238142,-152.084447,0.00020898,2]
[380330431,1755688238151,-151.780187,0.00020898,2]
[380330432,1755688238160,-151.0,0.00020898,2]
[380330433,1755688238169,-151.0,0.00020898,2]
[380330434,1755688238178,-185229.12321958,0.00020898,2]
[380330435,1755688238325,-1118.96645342,0.00020898,2]
[380330436,1755688238336,-183651.910327,0.00020898,2]
[380330437,1755688238346,-501.67355875,0.00020973,2]
[380330438,1755688238356,-500.0,0.00020973,2]
[380330439,1755688238365,-480.0,0.00020996,2]
[380330440,1755688238375,-591.63888149,0.00020996,2]
[380330441,1755688238384,-423.6777426,0.00020996,2]
[380330442,1755688238394,-480.0,0.00020996,2]
[380330443,1755688238403,-480.0,0.00020996,2]
[380330444,1755688238413,-480.0,0.00020996,2]
[380330445,1755688238422,-480.0,0.00020996,2]
[380330446,1755688238431,-480.0,0.00020996,2]
[380330447,1755688238440,-480.0,0.00020996,2]
[380330448,1755688238449,-480.0,0.00020996,2]
[380330449,1755688238459,-480.0,0.00020996,2]
[380330450,1755688238468,-480.0,0.00020996,2]
[380330451,1755688238477,-480.0,0.00020996,2]
[380330452,1755688238486,-483.06414089,0.00020996,2]
[380330453,1755688238495,-480.0,0.00020996,2]
[380330454,1755688238504,-480.0,0.00020996,2]
[380330455,1755688238514,-446.31780937,0.00020996,2]
[380330456,1755688238523,-480.0,0.00020996,2]
[380330457,1755688238532,-480.0,0.00020996,2]
[380330458,1755688238541,-351.17272675,0.00020996,2]
[380330459,1755688238552,-480.0,0.00020996,2]
[380330460,1755688238565,-480.0,0.00020996,2]
[380330461,1755688238575,-480.0,0.00020996,2]
[380330462,1755688238586,-480.0,0.00020996,2]
[380330463,1755688238596,-454.76443295,0.00020996,2]
[380330464,1755688238606,-480.0,0.00020996,2]
[380330465,1755688238615,-480.90762918,0.00020996,2]
[380330466,1755688238624,-422.36852799,0.00020996,2]
[380330467,1755688238635,-470.0,0.00020996,2]
[380330468,1755688238644,-482.11656327,0.00020996,2]
[380330469,1755688238653,-480.0,0.00020996,2]
[380330470,1755688238663,-480.0,0.00020996,2]
[380330471,1755688238672,-1560.30109212,0.00021068,2]
[380330472,1755688238682,-1500.0,0.00021068,2]
[380330473,1755688238692,-480.0,0.00021071,2]
[380330474,1755688238702,-355.30030621,0.00021071,2]
[380330475,1755688238713,-486.58,0.00021071,2]
[380330476,1755688238723,-480.0,0.00021071,2]
[380330477,1755688238735,-480.0,0.00021071,2]
[380330478,1755688238744,-483.08058184,0.00021071,2]
[380330479,1755688238753,-480.0,0.00021071,2]
[380330480,1755688238762,-480.0,0.00021071,2]
[380330481,1755688238772,-484.20888487,0.00021071,2]
[380330482,1755688238781,-480.0,0.00021071,2]
[380330483,1755688238790,-480.0,0.00021071,2]
[380330484,1755688238800,-480.0,0.00021071,2]
[380330485,1755688238809,-563.61,0.00021071,2]
[380330486,1755688238818,-480.0,0.00021071,2]
[380330487,1755688238828,-480.0,0.00021071,2]
[380330488,1755688238837,-480.0,0.00021071,2]
[380330489,1755688238846,-480.0,0.00021071,2]
[380330490,1755688238855,-480.0,0.00021071,2]
[380330491,1755688238865,-480.0,0.00021071,2]
[380330492,1755688238874,-483.82577504,0.00021071,2]
[380330493,1755688238883,-480.0,0.00021071,2]
[380330494,1755688238893,-480.0,0.00021071,2]
[380330495,1755688238902,-500.0,0.00021071,2]
[380330496,1755688238911,-458.03379057,0.00021071,2]
[380330497,1755688238921,-480.0,0.00021071,2]
[380330498,1755688238930,-480.0,0.00021071,2]
[380330499,1755688238939,-480.0,0.00021071,2]
[380330500,1755688238948,-480.0,0.00021071,2]
[380330501,1755688238957,-480.0,0.00021071,2]
[380330502,1755688238966,-483.94343525,0.00021071,2]
[380330503,1755688238975,-480.0,0.00021085,2]
[380330504,1755688238985,-748.16,0.00021085,2]
[380330505,1755688238994,-661.36,0.00021085,2]
[380330506,1755688239003,-480.0,0.00021085,2]
[380330507,1755688239012,-529.78,0.00021085,2]
[380330508,1755688239022,-480.0,0.00021085,2]
[380330509,1755688239032,-480.0,0.00021085,2]
[380330510,1755688239041,-480.0,0.00021085,2]
[380330511,1755688239050,-480.0,0.00021085,2]
[380330512,1755688239059,-300.0,0.00021251,20]
[380330513,1755688239068,-300.0,0.00021251,20]
[380330514,1755688239078,-151.12800027,0.0002127,2]
[380330515,1755688239087,-175.08380057,0.0002127,2]
[380330516,1755688239096,-235.35851952,0.0002127,2]
[380330517,1755688239106,-480.0,0.0002127,2]
[380330518,1755688239115,-480.0,0.00021345,2]
[380330519,1755688239125,-480.0,0.00021345,2]
[380330520,1755688239135,-480.0,0.00021359,2]
[380330521,1755688239144,-748.16,0.00021359,2]
[380330522,1755688239153,-661.36,0.00021359,2]
[380330523,1755688239162,-480.0,0.00021359,2]
[380330524,1755688239171,-529.78,0.00021359,2]
[380330525,1755688239181,-480.0,0.00021359,2]
[380330526,1755688239190,-480.0,0.00021359,2]
[380330527,1755688239199,-480.0,0.00021359,2]
[380330528,1755688239208,-480.0,0.00021359,2]
[380330529,1755688239218,-199.0,0.00021365,2]
[380330530,1755688239227,-1000.0,0.00021421,2]
[380330531,1755688239237,-1000.0,0.00021421,2]
[380330532,1755688239246,-766.90847773,0.00021421,2]
[380330533,1755688239256,-1000.0,0.00021421,2]
[380330534,1755688239266,-1000.0,0.00021421,2]
[380330535,1755688239275,-500.0,0.00021421,2]
[380330536,1755688239284,-276.52994332,0.00021421,2]
[380330537,1755688239293,-500.0,0.00021421,2]
[380330538,1755688239303,-1000.0,0.00021421,2]
[380330540,1755688239313,-1000.0,0.00021421,2]
[380330542,1755688239322,-1767.29054172,0.00021616,2]
[380330543,1755688239331,-480.0,0.00021619,2]
[380330544,1755688239341,-480.0,0.00021619,2]
[380330545,1755688239350,-2941.94,0.00021623,3]
[380330546,1755688239359,-312.88419696,0.00021633,2]
[380330547,1755688239368,-748.16,0.00021633,2]
[380330548,1755688239377,-661.36,0.00021633,2]
[380330549,1755688239387,-480.0,0.00021633,2]
[380330550,1755688239396,-529.78,0.00021633,2]
[380330551,1755688239406,-480.0,0.00021633,2]
[380330552,1755688239416,-480.0,0.00021633,2]
[380330554,1755688239426,-480.0,0.00021633,2]
[380330555,1755688239435,-480.0,0.00021633,2]
[380330556,1755688239444,-420.0,0.00021747,2]
[380330557,1755688239453,-1470.98,0.00021749,3]
[380330558,1755688239462,-1680.0,0.00021765,2]
[380330560,1755688239471,-7088.9306444,0.00021771,2]
[380330561,1755688239480,-1680.0,0.00021774,2]
[380330562,1755688239490,-1744.8184146,0.00021838,2]
[380330563,1755688239500,-600.0,0.00021893,20]
[380330564,1755688239509,-480.0,0.00021893,2]
[380330565,1755688239519,-480.0,0.00021893,2]
[380330566,1755688239529,-748.16,0.00021907,2]
[380330567,1755688239538,-661.36,0.00021907,2]
[380330568,1755688239547,-480.0,0.00021907,2]
[380330569,1755688239556,-529.78,0.00021907,2]
[380330570,1755688239566,-480.0,0.00021907,2]
[380330571,1755688239576,-480.0,0.00021907,2]
[380330573,1755688239585,-480.0,0.00021907,2]
[380330575,1755688239594,-500.0,0.00021968,2]
[380330576,1755688239603,-967.84456152,0.00021968,2]
[380330577,1755688239613,-1500.0,0.00021968,2]
[380330578,1755688239622,-1510.99433872,0.00021968,2]
[380330580,1755688239631,-1500.0,0.00021968,2]
[380330581,1755688239640,-160.88306904,0.00021973,2]
[380330582,1755688239649,-24266.04,0.00022,2]
[380330583,1755688239659,-6321.85895734,0.00022,7]
[380330584,1755688239668,-1636.33,0.00022,7]
[380330585,1755688239678,-14463.08,0.00022,7]
[380330586,1755688239687,-5538.11,0.00022,7]
[380330587,1755688239696,-151.496177,0.00022,7]
[380330588,1755688239705,-151.0,0.00022,7]
[380330589,1755688239714,-151.0,0.00022,7]
[380330590,1755688239724,-238.749711,0.00022,7]
[380330591,1755688239733,-151.0,0.00022,7]
[380330592,1755688239742,-151.0,0.00022,7]
[380330593,1755688239751,-151.0,0.00022,7]
[380330594,1755688239760,-151.0,0.00022,7]
[380330595,1755688239771,-151.0,0.00022,7]
[380330596,1755688239780,-151.0,0.00022,7]
[380330597,1755688239789,-151.0,0.00022,7]
[380330598,1755688239799,-151.0,0.00022,7]
[380330599,1755688239807,-151.0,0.00022,7]
[380330600,1755688239817,-151.0,0.00022,7]
[380330601,1755688239826,-151.0,0.00022,7]
[380330602,1755688239835,-151.0,0.00022,7]
[380330603,1755688239844,-417.15472785,0.00022,7]
[380330604,1755688239855,-151.0,0.00022,7]
[380330605,1755688239864,-151.0,0.00022,7]
[380330606,1755688239873,-151.0,0.00022,7]
[380330607,1755688239883,-151.0,0.00022,7]
[380330608,1755688239893,-151.0,0.00022,7]
[380330609,1755688239904,-151.0,0.00022,7]
[380330610,1755688239914,-154.606989,0.00022,7]
[380330611,1755688239924,-160.0,0.00022,7]
[380330612,1755688239934,-152.315725,0.00022,7]
[380330615,1755688239943,-151.0,0.00022,7]
[380330616,1755688239954,-151.0,0.00022,7]
[380330617,1755688239963,-151.0,0.00022,7]
[380330618,1755688239972,-151.0,0.00022,7]
[380330619,1755688239982,-151.0,0.00022,7]
[380330620,1755688239991,-151.0,0.00022,7]
[380330621,1755688240000,-528.77847288,0.00022,7]
[380330622,1755688240010,-213.288579,0.00022,7]
[380330623,1755688240019,-213.288579,0.00022,7]
[380330624,1755688240029,-213.288579,0.00022,7]
[380330625,1755688240038,-213.288579,0.00022,7]
[380330626,1755688240047,-151.0,0.00022,7]
[380330627,1755688240056,-375.94359665,0.00022,7]
[380330628,1755688240065,-151.0,0.00022,7]
[380330629,1755688240075,-151.0,0.00022,7]
[380330630,1755688240084,-154.843875,0.00022,7]
[380330631,1755688240093,-151.0,0.00022,7]
[380330632,1755688240103,-215.82729805,0.00022,7]
[380330633,1755688240112,-263.533358,0.00022,7]
[380330634,1755688240123,-160.0,0.0002204,2]
[380330635,1755688240132,-160.0,0.00022139,2]
[380330636,1755688240142,-375.94359665,0.00022139,2]
[380330637,1755688240152,-232.24568399,0.00022139,2]
[380330638,1755688240164,-160.0,0.00022139,2]
[380330639,1755688240176,-215.82729805,0.00022139,2]
[380330640,1755688240185,-528.77847288,0.00022139,2]
[380330641,1755688240195,-160.0,0.00022139,2]
[380330642,1755688240205,-844.05985274,0.00022139,2]
[380330643,1755688240214,-216.9170744,0.00022139,2]
[380330644,1755688240224,-160.0,0.00022139,2]
[380330645,1755688240234,-160.0,0.00022139,2]
[380330646,1755688240244,-480.0,0.00022167,2]
[380330647,1755688240253,-480.0,0.00022167,2]
[380330648,1755688240263,-748.16,0.00022181,2]
[380330649,1755688240274,-661.36,0.00022181,2]
[380330650,1755688240284,-480.0,0.00022181,2]
[380330651,1755688240293,-529.78,0.00022181,2]
[380330652,1755688240304,-480.0,0.00022181,2]
[380330653,1755688240313,-572.03736833,0.00022181,2]
[380330654,1755688240322,-480.0,0.00022181,2]
[380330655,1755688240331,-151.0,0.00022241,7]
[380330656,1755688240340,-151.0,0.00022241,7]
[380330657,1755688240349,-151.0,0.00022242,7]
[380330658,1755688240359,-1470.98,0.00022257,3]
[380330659,1755688240367,-181.34004703,0.0002226,2]
[380330660,1755688240377,-501.61147393,0.00022267,2]
[380330661,1755688240386,-500.52305043,0.00022267,2]
[380330662,1755688240395,-500.0,0.00022267,2]
[380330663,1755688240404,-500.0,0.00022367,2]
[380330664,1755688240413,-526.94486111,0.00022388,2]
[380330665,1755688240422,-1000.0,0.00022399,2]
[380330666,1755688240431,-1000.0,0.00022399,2]
[380330667,1755688240440,-1000.0,0.00022399,2]
[380330668,1755688240450,-473.0,0.00022399,2]
[380330669,1755688240459,-151.0,0.00022399,2]
[380330670,1755688240467,-243.89168695,0.00022399,2]
[380330671,1755688240476,-203.82073721,0.00022399,2]
[380330672,1755688240485,-2183.31810187,0.00022399,2]
[380330673,1755688240494,-151.0,0.00022399,2]
[380330674,1755688240504,-151.0,0.00022399,2]
[380330675,1755688240513,-151.0,0.00022399,2]
[380330676,1755688240524,-151.0,0.00022399,2]
[380330677,1755688240533,-151.0,0.00022399,2]
[380330678,1755688240543,-151.0,0.00022399,2]
[380330679,1755688240553,-151.0,0.00022399,2]
[380330680,1755688240568,-151.0,0.00022399,2]
[380330681,1755688240580,-151.0,0.00022399,2]
[380330682,1755688240590,-151.0,0.00022399,2]
[380330683,1755688240599,-151.0,0.00022399,2]
[380330684,1755688240610,-151.0,0.00022399,2]
[380330685,1755688240619,-151.0,0.00022399,2]
[380330686,1755688240630,-151.0,0.00022399,2]
[380330687,1755688240642,-151.0,0.00022399,2]
[380330688,1755688240651,-480.0,0.00022441,2]
[380330689,1755688240660,-480.0,0.00022441,2]
[380330690,1755688240671,-748.16,0.00022455,2]
[380330691,1755688240682,-661.36,0.00022455,2]
[380330692,1755688240691,-480.0,0.00022455,2]
[380330693,1755688240702,-529.78,0.00022455,2]
[380330694,1755688240712,-480.0,0.00022455,2]
[380330695,1755688240723,-480.0,0.00022455,2]
[380330696,1755688240734,-239.95785,0.00022516,7]
[380330697,1755688240744,-500.0,0.00022516,2]
[380330698,1755688240754,-2000.0,0.00022516,2]
[380330699,1755688240763,-260.0,0.00022588,2]
[380330700,1755688240773,-7088.9306444,0.00022706,2]
[380330701,1755688240783,-480.0,0.00022715,2]
[380330702,1755688240792,-480.0,0.00022715,2]
[380330703,1755688240801,-748.16,0.00022729,2]
[380330704,1755688240810,-661.36,0.00022729,2]
[380330705,1755688240819,-480.0,0.00022729,2]
[380330706,1755688240829,-529.78,0.00022729,2]
[380330707,1755688240838,-480.0,0.00022729,2]
[380330708,1755688240847,-480.0,0.00022729,2]
[380330709,1755688240856,-1744.8184146,0.00022826,2]
[380330710,1755688240865,-214.0,0.00022864,2]
[380330711,1755688240875,-202.984,0.00022985,2]
[380330712,1755688240883,-352.76,0.00022989,2]
[380330713,1755688240892,-480.0,0.00022989,2]
[380330714,1755688240902,-160.0,0.00023,2]
[380330715,1755688240911,-748.16,0.00023003,2]
[380330716,1755688240920,-661.36,0.00023003,2]
[380330717,1755688241025,-480.0,0.00023003,2]
[380330718,1755688241036,-529.78,0.00023003,2]
[380330719,1755688241046,-480.0,0.00023003,2]
[380330720,1755688241056,-492.22485948,0.00023003,2]
[380330721,1755688241066,-2500.0,0.00023064,2]
[380330722,1755688241076,-360.0,0.00023136,2]
[380330723,1755688241086,-4214.86705121,0.00023246,2]
[380330724,1755688241095,-480.0,0.00023263,2]
[380330725,1755688241104,-214.0,0.00023264,2]
[380330726,1755688241115,-748.16,0.00023277,2]
[380330727,1755688241125,-661.36,0.00023277,2]
[380330728,1755688241134,-480.0,0.00023277,2]
[380330729,1755688241144,-529.78,0.00023277,2]
[380330730,1755688241153,-480.0,0.00023277,2]
[380330731,1755688241163,-268.0,0.00023281,2]
[380330732,1755688241171,-1636.33,0.000234,7]
[380330733,1755688241181,-14463.08,0.000234,7]
[380330734,1755688241190,-12687.94051737,0.000234,7]
[380330735,1755688241200,-151.0,0.000234,7]
[380330736,1755688241210,-151.0,0.000234,7]
[380330737,1755688241220,-151.0,0.000234,7]
[380330738,1755688241230,-151.0,0.000234,7]
[380330739,1755688241239,-151.0,0.000234,7]
[380330740,1755688241248,-151.0,0.000234,7]